[Event "*** SCC Grand Prix: Titled Tuesday Blitz"]
[Site "Chess.com"]
[Date "2020.10.13"]
[Round "1"]
[White "AurumO"]
[Black "RoelandPruijssers"]
[Result "1-0"]
[WhiteElo "1920"]
[BlackElo "2489"]
[TimeControl "180+1"]
[EndTime "10:02:15 PDT"]
[Termination "AurumO won by resignation"]

1. e4 {[%clk 0:02:59.4]} 1... d5 {[%clk 0:02:56.6]} 2. exd5 {[%clk 0:02:52]}
2... Qxd5 {[%clk 0:02:55.9]} 3. Nc3 {[%clk 0:02:48.8]} 3... Qa5 {[%clk
0:02:50.7]} 4. d4 {[%clk 0:02:48.2]} 4... Nf6 {[%clk 0:02:50.2]} 5. Bd2 {[%clk
0:02:47.3]} 5... Bg4 {[%clk 0:02:48.6]} 6. Be2 {[%clk 0:02:46.4]} 6... Bxe2
{[%clk 0:02:43.8]} 7. Ngxe2 {[%clk 0:02:47.3]} 7... e6 {[%clk 0:02:41]} 8. Ne4
{[%clk 0:02:43.7]} 8... Qb6 {[%clk 0:02:30]} 9. Nxf6+ {[%clk 0:02:43.8]} 9...
gxf6 {[%clk 0:02:30]} 10. Bc3 {[%clk 0:02:43.5]} 10... Nc6 {[%clk 0:02:26]} 11.
Qd2 {[%clk 0:02:34.2]} 11... O-O-O {[%clk 0:02:21.5]} 12. O-O-O {[%clk
0:02:34.6]} 12... Rg8 {[%clk 0:02:07.4]} 13. g3 {[%clk 0:02:22]} 13... Qc5
{[%clk 0:02:04.4]} 1-0

[Event "*** SCC Grand Prix: Titled Tuesday Blitz"]
[Site "Chess.com"]
[Date "2020.10.13"]
[Round "1"]
[White "tteshan"]
[Black "BeanScreen"]
[Result "0-1"]
[WhiteElo "2385"]
[BlackElo "2739"]
[TimeControl "180+1"]
[EndTime "10:02:20 PDT"]
[Termination "BeanScreen won by resignation"]

1. e4 {[%clk 0:03:00.2]} 1... e5 {[%clk 0:03:00.3]} 2. Nf3 {[%clk 0:02:59.9]}
2... Nc6 {[%clk 0:03:01.1]} 3. Bb5 {[%clk 0:03:00.1]} 3... a6 {[%clk 0:03:01.7]}
4. Ba4 {[%clk 0:03:00.5]} 4... d6 {[%clk 0:03:02.6]} 5. d4 {[%clk 0:02:58.6]}
5... b5 {[%clk 0:03:02.7]} 6. Bb3 {[%clk 0:02:57.9]} 6... Nxd4 {[%clk
0:03:03.3]} 7. Nxd4 {[%clk 0:02:57.3]} 7... exd4 {[%clk 0:03:04.2]} 8. Qxd4
{[%clk 0:02:52.3]} 8... c5 {[%clk 0:03:04.3]} 9. Bxf7+ {[%clk 0:01:36.7]} 9...
Kxf7 {[%clk 0:03:05.2]} 10. Qd5+ {[%clk 0:01:37.2]} 10... Be6 {[%clk 0:03:05.7]}
11. Qb7+ {[%clk 0:01:36.4]} 11... Be7 {[%clk 0:03:05.1]} 12. O-O {[%clk
0:01:33.5]} 12... Nf6 {[%clk 0:03:04.9]} 13. f4 {[%clk 0:01:33.5]} 13... Qd7
{[%clk 0:03:00.8]} 14. Qb6 {[%clk 0:01:28]} 14... Bd8 {[%clk 0:02:59.8]} 0-1

[Event "*** SCC Grand Prix: Titled Tuesday Blitz"]
[Site "Chess.com"]
[Date "2020.10.13"]
[Round "1"]
[White "karwowskikacper"]
[Black "Shubinkirill2003"]
[Result "0-1"]
[WhiteElo "2328"]
[BlackElo "2656"]
[TimeControl "180+1"]
[EndTime "10:02:45 PDT"]
[Termination "Shubinkirill2003 won by resignation"]

1. e4 {[%clk 0:02:30.7]} 1... e6 {[%clk 0:02:55.7]} 2. d3 {[%clk 0:02:27.1]}
2... c5 {[%clk 0:02:55.4]} 3. Nd2 {[%clk 0:02:28]} 3... Nc6 {[%clk 0:02:55.3]}
4. g3 {[%clk 0:02:27.6]} 4... g6 {[%clk 0:02:55.7]} 5. Bg2 {[%clk 0:02:27.8]}
5... Bg7 {[%clk 0:02:56.6]} 6. Ngf3 {[%clk 0:02:28.1]} 6... Nge7 {[%clk
0:02:57.1]} 7. O-O {[%clk 0:02:28.6]} 7... O-O {[%clk 0:02:57.2]} 8. Re1 {[%clk
0:02:25.9]} 8... e5 {[%clk 0:02:57.4]} 9. c4 {[%clk 0:02:20.1]} 9... d6 {[%clk
0:02:55.9]} 10. Nf1 {[%clk 0:02:18.1]} 10... f5 {[%clk 0:02:52.1]} 11. Ne3
{[%clk 0:02:14.2]} 11... fxe4 {[%clk 0:02:51.9]} 12. dxe4 {[%clk 0:02:15.1]}
12... Nd4 {[%clk 0:02:51.9]} 13. Nxd4 {[%clk 0:02:10.3]} 13... cxd4 {[%clk
0:02:49.8]} 14. Nd5 {[%clk 0:02:11.2]} 14... Nxd5 {[%clk 0:02:46]} 15. cxd5
{[%clk 0:02:12.1]} 15... Bd7 {[%clk 0:02:42.4]} 16. h4 {[%clk 0:01:56.6]} 16...
h6 {[%clk 0:02:37.6]} 17. Qb3 {[%clk 0:01:44.4]} 17... Qa5 {[%clk 0:02:31.4]}
18. a4 {[%clk 0:01:34.3]} 18... Qxe1+ {[%clk 0:02:29.6]} 0-1

[Event "*** SCC Grand Prix: Titled Tuesday Blitz"]
[Site "Chess.com"]
[Date "2020.10.13"]
[Round "1"]
[White "beto-betun"]
[Black "Andrei_Belozerov"]
[Result "0-1"]
[WhiteElo "2170"]
[BlackElo "2546"]
[TimeControl "180+1"]
[EndTime "10:02:49 PDT"]
[Termination "Andrei_Belozerov won by resignation"]

1. d4 {[%clk 0:03:00.9]} 1... d5 {[%clk 0:02:58.7]} 2. Nf3 {[%clk 0:03:01.1]}
2... Nf6 {[%clk 0:02:58.6]} 3. c4 {[%clk 0:02:59.9]} 3... c6 {[%clk 0:02:58.7]}
4. g3 {[%clk 0:02:58.2]} 4... Bg4 {[%clk 0:02:58.1]} 5. Bg2 {[%clk 0:02:58]}
5... e6 {[%clk 0:02:57.6]} 6. O-O {[%clk 0:02:54]} 6... Nbd7 {[%clk 0:02:57.6]}
7. b3 {[%clk 0:02:52.9]} 7... Bd6 {[%clk 0:02:53]} 8. Bb2 {[%clk 0:02:52.6]}
8... O-O {[%clk 0:02:52.9]} 9. Nbd2 {[%clk 0:02:51.4]} 9... Qe7 {[%clk 0:02:53]}
10. h3 {[%clk 0:02:50.6]} 10... Bh5 {[%clk 0:02:52.2]} 11. Rc1 {[%clk
0:02:46.9]} 11... Rfe8 {[%clk 0:02:50.9]} 12. Re1 {[%clk 0:02:46.6]} 12... Rad8
{[%clk 0:02:50.1]} 13. Ne5 {[%clk 0:02:37.1]} 13... Ba3 {[%clk 0:02:47.6]} 14.
Qc2 {[%clk 0:02:23.5]} 14... Nxe5 {[%clk 0:02:43.8]} 15. dxe5 {[%clk 0:02:24.4]}
15... Nd7 {[%clk 0:02:43.4]} 16. f4 {[%clk 0:02:16.8]} 16... Bg6 {[%clk
0:02:41.8]} 17. Qc3 {[%clk 0:02:06.3]} 17... d4 {[%clk 0:02:38]} 18. Bxa3 {[%clk
0:02:01.6]} 18... dxc3 {[%clk 0:02:32.2]} 19. Bxe7 {[%clk 0:01:58.9]} 19... cxd2
{[%clk 0:02:32.2]} 20. Bxd8 {[%clk 0:01:57.8]} 20... Rxd8 {[%clk 0:02:31.9]} 21.
Rcd1 {[%clk 0:01:54.7]} 21... dxe1=Q+ {[%clk 0:02:29.2]} 22. Rxe1 {[%clk
0:01:55.6]} 22... Nc5 {[%clk 0:02:28.8]} 0-1

[Event "*** SCC Grand Prix: Titled Tuesday Blitz"]
[Site "Chess.com"]
[Date "2020.10.13"]
[Round "1"]
[White "seorobert1971"]
[Black "kingandqueen2017"]
[Result "1-0"]
[WhiteElo "2719"]
[BlackElo "2367"]
[TimeControl "180+1"]
[EndTime "10:02:53 PDT"]
[Termination "seorobert1971 won by resignation"]

1. d4 {[%clk 0:02:56.6]} 1... Nf6 {[%clk 0:02:59.7]} 2. c4 {[%clk 0:02:55.3]}
2... e6 {[%clk 0:03:00]} 3. Nc3 {[%clk 0:02:54.4]} 3... Bb4 {[%clk 0:02:59.9]}
4. Qc2 {[%clk 0:02:54.4]} 4... O-O {[%clk 0:02:59.2]} 5. a3 {[%clk 0:02:54.1]}
5... Bxc3+ {[%clk 0:02:59.7]} 6. Qxc3 {[%clk 0:02:55]} 6... b6 {[%clk 0:03:00]}
7. Nf3 {[%clk 0:02:54.7]} 7... Bb7 {[%clk 0:03:00]} 8. g3 {[%clk 0:02:54.7]}
8... Ne4 {[%clk 0:02:58.1]} 9. Qc2 {[%clk 0:02:54.5]} 9... f5 {[%clk 0:02:58.3]}
10. Bg2 {[%clk 0:02:54.5]} 10... d6 {[%clk 0:02:58.6]} 11. O-O {[%clk
0:02:54.5]} 11... Nd7 {[%clk 0:02:59.3]} 12. Nd2 {[%clk 0:02:54]} 12... Nxd2
{[%clk 0:02:56.8]} 13. Bxd2 {[%clk 0:02:52.9]} 13... Bxg2 {[%clk 0:02:56.5]} 14.
Kxg2 {[%clk 0:02:53.2]} 14... Nf6 {[%clk 0:02:56.5]} 15. Bg5 {[%clk 0:02:52.7]}
15... Qc8 {[%clk 0:02:56.6]} 16. Bxf6 {[%clk 0:02:51.7]} 16... Rxf6 {[%clk
0:02:57.5]} 17. f4 {[%clk 0:02:50.5]} 17... Qb7+ {[%clk 0:02:55.6]} 18. Kg1
{[%clk 0:02:50.7]} 18... Raf8 {[%clk 0:02:54.4]} 19. Rae1 {[%clk 0:02:50.1]}
19... Rh6 {[%clk 0:02:54.7]} 20. e4 {[%clk 0:02:49.4]} 20... fxe4 {[%clk
0:02:54.2]} 21. Rxe4 {[%clk 0:02:48.6]} 21... Rff6 {[%clk 0:02:51.3]} 22. Rfe1
{[%clk 0:02:48.1]} 22... Rfg6 {[%clk 0:02:48.5]} 23. d5 {[%clk 0:02:42.5]} 23...
Qc8 {[%clk 0:02:44.5]} 24. f5 {[%clk 0:02:34.4]} 24... Rf6 {[%clk 0:02:41.2]}
25. fxe6 {[%clk 0:02:34.5]} 25... Qe8 {[%clk 0:02:40.9]} 26. R4e2 {[%clk
0:02:27.4]} 26... Rhg6 {[%clk 0:02:37.2]} 27. Rf2 {[%clk 0:02:26.8]} 27... Rxf2
{[%clk 0:02:36.7]} 28. Qxf2 {[%clk 0:02:25.6]} 28... Rf6 {[%clk 0:02:36.8]} 29.
Qe3 {[%clk 0:02:23.8]} 29... Qe7 {[%clk 0:02:36.8]} 30. a4 {[%clk 0:02:22.3]}
30... a5 {[%clk 0:02:36.5]} 31. b3 {[%clk 0:02:22.3]} 31... Rf5 {[%clk
0:02:36.5]} 32. Rf1 {[%clk 0:02:21.6]} 32... Rxf1+ {[%clk 0:02:34.1]} 33. Kxf1
{[%clk 0:02:21.7]} 33... Qf6+ {[%clk 0:02:35]} 34. Kg2 {[%clk 0:02:21.9]} 34...
Kf8 {[%clk 0:02:34.1]} 35. Qf3 {[%clk 0:02:18.9]} 35... Ke7 {[%clk 0:02:33.9]}
36. Qxf6+ {[%clk 0:02:18.4]} 36... Kxf6 {[%clk 0:02:34.8]} 37. Kf3 {[%clk
0:02:18.5]} 37... Ke7 {[%clk 0:02:35.1]} 38. g4 {[%clk 0:02:16.1]} 38... Kf6
{[%clk 0:02:36]} 39. h4 {[%clk 0:02:16.3]} 39... h6 {[%clk 0:02:35.1]} 40. h5
{[%clk 0:02:15.6]} 40... Ke7 {[%clk 0:02:35.1]} 41. Ke4 {[%clk 0:02:15.8]} 41...
Kf6 {[%clk 0:02:35.3]} 42. Kf4 {[%clk 0:02:16.1]} 42... Ke7 {[%clk 0:02:35.6]}
43. Kf5 {[%clk 0:02:16.3]} 1-0

[Event "*** SCC Grand Prix: Titled Tuesday Blitz"]
[Site "Chess.com"]
[Date "2020.10.13"]
[Round "1"]
[White "tlomigtlis"]
[Black "glebus008"]
[Result "1-0"]
[WhiteElo "2633"]
[BlackElo "2299"]
[TimeControl "180+1"]
[EndTime "10:02:55 PDT"]
[Termination "tlomigtlis won by checkmate"]

1. d4 {[%clk 0:03:00.9]} 1... d5 {[%clk 0:02:58.6]} 2. c4 {[%clk 0:03:00.8]}
2... e6 {[%clk 0:02:58.6]} 3. Nc3 {[%clk 0:03:01]} 3... c6 {[%clk 0:02:58.7]} 4.
e4 {[%clk 0:02:59.5]} 4... dxe4 {[%clk 0:02:59.6]} 5. Nxe4 {[%clk 0:03:00.4]}
5... Bb4+ {[%clk 0:02:59]} 6. Bd2 {[%clk 0:03:00.6]} 6... Qxd4 {[%clk
0:02:58.3]} 7. Bxb4 {[%clk 0:03:00.9]} 7... Qxe4+ {[%clk 0:02:58.3]} 8. Ne2
{[%clk 0:03:01]} 8... Na6 {[%clk 0:02:56.9]} 9. Bf8 {[%clk 0:03:00.8]} 9... Ne7
{[%clk 0:02:56.4]} 10. Bxg7 {[%clk 0:03:00.5]} 10... Rg8 {[%clk 0:02:55]} 11.
Bf6 {[%clk 0:02:57.4]} 11... Nb4 {[%clk 0:02:51.1]} 12. Qd6 {[%clk 0:02:57.1]}
12... Nc2+ {[%clk 0:00:56.4]} 13. Kd2 {[%clk 0:02:56.2]} 13... Nf5 {[%clk
0:00:48.4]} 14. Qd8# {[%clk 0:02:55.9]} 1-0

[Event "*** SCC Grand Prix: Titled Tuesday Blitz"]
[Site "Chess.com"]
[Date "2020.10.13"]
[Round "1"]
[White "Parhamov"]
[Black "TudorAnton"]
[Result "1-0"]
[WhiteElo "2952"]
[BlackElo "2485"]
[TimeControl "180+1"]
[EndTime "10:03:09 PDT"]
[Termination "Parhamov won by resignation"]

1. e4 {[%clk 0:02:53.9]} 1... e5 {[%clk 0:02:59.7]} 2. Nf3 {[%clk 0:02:44.9]}
2... Nc6 {[%clk 0:02:58.1]} 3. Bb5 {[%clk 0:02:45.5]} 3... a6 {[%clk 0:02:57.7]}
4. Ba4 {[%clk 0:02:45]} 4... Nf6 {[%clk 0:02:55.3]} 5. d3 {[%clk 0:02:45.3]}
5... b5 {[%clk 0:02:55]} 6. Bb3 {[%clk 0:02:44.6]} 6... Bc5 {[%clk 0:02:55.1]}
7. a4 {[%clk 0:02:44.3]} 7... Rb8 {[%clk 0:02:54.4]} 8. Bg5 {[%clk 0:02:43.6]}
8... h6 {[%clk 0:02:53.7]} 9. Bh4 {[%clk 0:02:42.5]} 9... g5 {[%clk 0:02:49.3]}
10. Bg3 {[%clk 0:02:42.2]} 10... d6 {[%clk 0:02:49.8]} 11. Nc3 {[%clk
0:02:41.4]} 11... Bg4 {[%clk 0:02:46.9]} 12. h3 {[%clk 0:02:39.3]} 12... Bxf3
{[%clk 0:02:39.4]} 13. Qxf3 {[%clk 0:02:40.2]} 13... Nd4 {[%clk 0:02:39.7]} 14.
Qd1 {[%clk 0:02:39.3]} 14... c6 {[%clk 0:02:24.1]} 15. Ba2 {[%clk 0:02:37.5]}
15... O-O {[%clk 0:02:00]} 16. O-O {[%clk 0:02:35.9]} 16... Kg7 {[%clk
0:01:58.7]} 17. axb5 {[%clk 0:02:30.1]} 17... axb5 {[%clk 0:01:57.7]} 18. Ne2
{[%clk 0:02:30.8]} 18... Nxe2+ {[%clk 0:01:45]} 19. Qxe2 {[%clk 0:02:30.5]}
19... Qb6 {[%clk 0:01:45.6]} 20. c3 {[%clk 0:02:26.4]} 20... Ra8 {[%clk
0:01:42.5]} 21. b4 {[%clk 0:02:22.1]} 1-0

[Event "*** SCC Grand Prix: Titled Tuesday Blitz"]
[Site "Chess.com"]
[Date "2020.10.13"]
[Round "1"]
[White "Region_07"]
[Black "vanea_03"]
[Result "0-1"]
[WhiteElo "2348"]
[BlackElo "2689"]
[TimeControl "180+1"]
[EndTime "10:03:39 PDT"]
[Termination "vanea_03 won by resignation"]

1. d4 {[%clk 0:02:55.1]} 1... f5 {[%clk 0:02:59.4]} 2. Nf3 {[%clk 0:02:50.2]}
2... Nf6 {[%clk 0:02:59.3]} 3. c4 {[%clk 0:02:47.9]} 3... e6 {[%clk 0:02:59.3]}
4. Nc3 {[%clk 0:02:47.7]} 4... Bb4 {[%clk 0:02:58.8]} 5. Bd2 {[%clk 0:02:45.1]}
5... O-O {[%clk 0:02:58]} 6. e3 {[%clk 0:02:43.8]} 6... b6 {[%clk 0:02:53.3]} 7.
a3 {[%clk 0:02:41.5]} 7... Bxc3 {[%clk 0:02:53]} 8. Bxc3 {[%clk 0:02:42.4]} 8...
d6 {[%clk 0:02:47.4]} 9. Be2 {[%clk 0:02:34.7]} 9... Bb7 {[%clk 0:02:46.9]} 10.
Qc2 {[%clk 0:02:28.5]} 10... a5 {[%clk 0:02:43.3]} 11. O-O-O {[%clk 0:02:26.2]}
11... Ne4 {[%clk 0:02:30.8]} 12. Bd3 {[%clk 0:02:22]} 12... a4 {[%clk
0:02:21.7]} 13. Rdf1 {[%clk 0:02:20.4]} 13... Nd7 {[%clk 0:02:16.5]} 14. Nd2
{[%clk 0:02:19.2]} 14... Nxc3 {[%clk 0:02:10.1]} 15. Qxc3 {[%clk 0:02:18.3]}
15... Bxg2 {[%clk 0:02:10.8]} 16. Rhg1 {[%clk 0:02:11.4]} 16... Bxf1 {[%clk
0:02:10.7]} 17. Bxf1 {[%clk 0:02:08.1]} 17... Qh4 {[%clk 0:02:03.6]} 18. d5
{[%clk 0:02:04]} 18... e5 {[%clk 0:02:03.2]} 19. f4 {[%clk 0:02:00.7]} 19...
Rae8 {[%clk 0:01:57]} 20. Bd3 {[%clk 0:01:52.3]} 20... Re7 {[%clk 0:01:50.5]}
21. Qc2 {[%clk 0:01:48.3]} 21... exf4 {[%clk 0:01:42.9]} 22. exf4 {[%clk
0:01:45.5]} 22... Re1+ {[%clk 0:01:42]} 23. Rxe1 {[%clk 0:01:44.2]} 23... Qxe1+
{[%clk 0:01:42.9]} 0-1

[Event "*** SCC Grand Prix: Titled Tuesday Blitz"]
[Site "Chess.com"]
[Date "2020.10.13"]
[Round "1"]
[White "Karacsonyi_Gellert"]
[Black "VladimirBugayev"]
[Result "0-1"]
[WhiteElo "2631"]
[BlackElo "2335"]
[TimeControl "180+1"]
[EndTime "10:03:39 PDT"]
[Termination "VladimirBugayev won by resignation"]

1. e4 {[%clk 0:02:59.9]} 1... c6 {[%clk 0:03:00]} 2. d4 {[%clk 0:02:58.2]} 2...
d5 {[%clk 0:03:00.3]} 3. exd5 {[%clk 0:02:59.1]} 3... cxd5 {[%clk 0:03:00.3]} 4.
Bd3 {[%clk 0:02:58.9]} 4... Nf6 {[%clk 0:02:59.6]} 5. c3 {[%clk 0:02:59]} 5...
Bg4 {[%clk 0:02:56.7]} 6. Ne2 {[%clk 0:02:58.1]} 6... Nc6 {[%clk 0:02:53.9]} 7.
Qb3 {[%clk 0:02:57.2]} 7... Qd7 {[%clk 0:02:50.9]} 8. Ng3 {[%clk 0:02:48.9]}
8... h5 {[%clk 0:02:34.7]} 9. h3 {[%clk 0:02:47]} 9... Be6 {[%clk 0:02:34.6]}
10. O-O {[%clk 0:02:43.9]} 10... h4 {[%clk 0:02:32]} 11. Ne2 {[%clk 0:02:43.7]}
11... Bxh3 {[%clk 0:02:28.3]} 12. gxh3 {[%clk 0:02:26.7]} 12... Qxh3 {[%clk
0:02:27.9]} 13. f3 {[%clk 0:02:25.8]} 13... O-O-O {[%clk 0:02:20.7]} 14. Rf2
{[%clk 0:02:21]} 14... Rd6 {[%clk 0:02:08.2]} 15. Bf4 {[%clk 0:02:08]} 15... Re6
{[%clk 0:02:06.2]} 16. Nd2 {[%clk 0:02:06.1]} 16... Ne4 {[%clk 0:01:52.3]} 17.
fxe4 {[%clk 0:01:57]} 17... Rg6+ {[%clk 0:01:51.9]} 0-1

[Event "*** SCC Grand Prix: Titled Tuesday Blitz"]
[Site "Chess.com"]
[Date "2020.10.13"]
[Round "1"]
[White "Sergey85Rodchenkov"]
[Black "Infernal_XaM"]
[Result "0-1"]
[WhiteElo "2455"]
[BlackElo "2878"]
[TimeControl "180+1"]
[EndTime "10:04:11 PDT"]
[Termination "Infernal_XaM won by resignation"]

1. e4 {[%clk 0:03:00.8]} 1... e5 {[%clk 0:02:58.6]} 2. Nf3 {[%clk 0:03:00.4]}
2... Nc6 {[%clk 0:02:57.7]} 3. Bc4 {[%clk 0:03:00.4]} 3... Nf6 {[%clk
0:02:57.4]} 4. d3 {[%clk 0:03:00.4]} 4... Bc5 {[%clk 0:02:54.9]} 5. O-O {[%clk
0:03:00.3]} 5... d6 {[%clk 0:02:49.3]} 6. c3 {[%clk 0:03:00]} 6... Bb6 {[%clk
0:02:48.9]} 7. Re1 {[%clk 0:02:58.7]} 7... h6 {[%clk 0:02:47.1]} 8. Nbd2 {[%clk
0:02:57]} 8... g5 {[%clk 0:02:39.1]} 9. Nf1 {[%clk 0:02:55.9]} 9... g4 {[%clk
0:02:39.3]} 10. N3d2 {[%clk 0:02:55.4]} 10... h5 {[%clk 0:02:39.7]} 11. Ne3
{[%clk 0:02:27.3]} 11... h4 {[%clk 0:02:32.2]} 12. Ndf1 {[%clk 0:02:27.1]} 12...
Bd7 {[%clk 0:02:12.4]} 13. b4 {[%clk 0:02:26.4]} 13... a6 {[%clk 0:02:09.3]} 14.
a4 {[%clk 0:02:26]} 14... Qe7 {[%clk 0:02:07.8]} 15. a5 {[%clk 0:02:25.7]} 15...
Ba7 {[%clk 0:02:07.2]} 16. b5 {[%clk 0:02:25.8]} 16... axb5 {[%clk 0:02:06.8]}
17. Bxb5 {[%clk 0:02:26]} 17... Qf8 {[%clk 0:01:38.8]} 18. a6 {[%clk 0:02:24.9]}
18... Rb8 {[%clk 0:01:36.3]} 19. axb7 {[%clk 0:02:23.4]} 19... Rxb7 {[%clk
0:01:36.6]} 20. Bxc6 {[%clk 0:02:17.1]} 20... Bxc6 {[%clk 0:01:36.5]} 21. d4
{[%clk 0:02:11.3]} 21... g3 {[%clk 0:01:16.6]} 22. Qf3 {[%clk 0:02:03]} 22...
Nxe4 {[%clk 0:01:11.6]} 23. d5 {[%clk 0:02:02.1]} 23... gxf2+ {[%clk 0:01:11.3]}
0-1

[Event "*** SCC Grand Prix: Titled Tuesday Blitz"]
[Site "Chess.com"]
[Date "2020.10.13"]
[Round "1"]
[White "vlad_Sid"]
[Black "AndreyNeves"]
[Result "1-0"]
[WhiteElo "2582"]
[BlackElo "2248"]
[TimeControl "180+1"]
[EndTime "10:04:19 PDT"]
[Termination "vlad_Sid won by resignation"]

1. c4 {[%clk 0:03:00.9]} 1... e6 {[%clk 0:02:58.8]} 2. g3 {[%clk 0:03:00.6]}
2... d5 {[%clk 0:02:52]} 3. Bg2 {[%clk 0:03:01.5]} 3... Nf6 {[%clk 0:02:51.7]}
4. Nf3 {[%clk 0:03:00.1]} 4... b6 {[%clk 0:02:44.3]} 5. O-O {[%clk 0:02:57.9]}
5... Bb7 {[%clk 0:02:44]} 6. d4 {[%clk 0:02:53.4]} 6... Nbd7 {[%clk 0:02:42.5]}
7. Qc2 {[%clk 0:02:52.1]} 7... Bd6 {[%clk 0:02:38.7]} 8. Nfd2 {[%clk 0:02:47.1]}
8... O-O {[%clk 0:02:34.7]} 9. Nc3 {[%clk 0:02:46.7]} 9... c5 {[%clk 0:02:28.3]}
10. dxc5 {[%clk 0:02:40.2]} 10... bxc5 {[%clk 0:02:24.9]} 11. cxd5 {[%clk
0:02:40.2]} 11... exd5 {[%clk 0:02:24.4]} 12. Nc4 {[%clk 0:02:33.7]} 12... Bb8
{[%clk 0:02:17.1]} 13. Ne3 {[%clk 0:02:33.4]} 13... Nb6 {[%clk 0:02:11.3]} 14.
Rd1 {[%clk 0:02:33.3]} 14... Re8 {[%clk 0:01:46.3]} 15. Nexd5 {[%clk 0:02:07]}
15... Nfxd5 {[%clk 0:01:43]} 16. e4 {[%clk 0:02:04.5]} 16... Qe7 {[%clk
0:01:18.9]} 17. exd5 {[%clk 0:01:41]} 17... Qe1+ {[%clk 0:01:15.3]} 18. Bf1
{[%clk 0:01:38.1]} 18... Ba6 {[%clk 0:01:10.2]} 19. Be3 {[%clk 0:01:35.4]} 1-0

[Event "*** SCC Grand Prix: Titled Tuesday Blitz"]
[Site "Chess.com"]
[Date "2020.10.13"]
[Round "1"]
[White "margarita_2703"]
[Black "abhidabhi"]
[Result "0-1"]
[WhiteElo "2398"]
[BlackElo "2762"]
[TimeControl "180+1"]
[EndTime "10:04:25 PDT"]
[Termination "abhidabhi won by checkmate"]

1. Nf3 {[%clk 0:03:00.9]} 1... Nf6 {[%clk 0:02:54.7]} 2. c4 {[%clk 0:03:00]}
2... g6 {[%clk 0:02:52.8]} 3. Nc3 {[%clk 0:03:00]} 3... c5 {[%clk 0:02:52.4]} 4.
d4 {[%clk 0:02:58.4]} 4... cxd4 {[%clk 0:02:52.3]} 5. Nxd4 {[%clk 0:02:57.7]}
5... Bg7 {[%clk 0:02:52.9]} 6. e4 {[%clk 0:02:57.7]} 6... Nc6 {[%clk 0:02:53.1]}
7. Be3 {[%clk 0:02:57.5]} 7... d6 {[%clk 0:02:52.4]} 8. Be2 {[%clk 0:02:57.3]}
8... O-O {[%clk 0:02:51.9]} 9. O-O {[%clk 0:02:57.3]} 9... Bd7 {[%clk
0:02:49.5]} 10. Nd5 {[%clk 0:02:57.1]} 10... Nxd5 {[%clk 0:02:47.5]} 11. exd5
{[%clk 0:02:51]} 11... Nxd4 {[%clk 0:02:45.7]} 12. Bxd4 {[%clk 0:02:51.1]} 12...
a6 {[%clk 0:02:39.7]} 13. Re1 {[%clk 0:02:43.4]} 13... e5 {[%clk 0:02:34.2]} 14.
dxe6 {[%clk 0:02:42.1]} 14... Bxe6 {[%clk 0:02:34.3]} 15. Bxg7 {[%clk
0:02:41.5]} 15... Kxg7 {[%clk 0:02:35.2]} 16. Qd4+ {[%clk 0:02:41.6]} 16... Qf6
{[%clk 0:02:35.1]} 17. Rad1 {[%clk 0:02:34.1]} 17... Rfd8 {[%clk 0:02:31.9]} 18.
Bf3 {[%clk 0:02:27.6]} 18... Rac8 {[%clk 0:02:23]} 19. b3 {[%clk 0:02:26.6]}
19... b5 {[%clk 0:02:17.7]} 20. cxb5 {[%clk 0:02:25.1]} 20... axb5 {[%clk
0:02:13.7]} 21. Qb6 {[%clk 0:02:19.5]} 21... Rc2 {[%clk 0:02:10]} 22. Rxd6
{[%clk 0:02:12.4]} 22... Qe5 {[%clk 0:01:39.7]} 23. Rdd1 {[%clk 0:01:43]} 23...
Rxd1 {[%clk 0:01:36.9]} 24. Rxd1 {[%clk 0:01:42.7]} 24... Rxa2 {[%clk
0:01:36.1]} 25. b4 {[%clk 0:01:29.5]} 25... Ra1 {[%clk 0:01:34.5]} 26. Qd8
{[%clk 0:01:18.3]} 26... Qe1+ {[%clk 0:01:33.4]} 27. Rxe1 {[%clk 0:01:17]} 27...
Rxe1# {[%clk 0:01:34.3]} 0-1

[Event "*** SCC Grand Prix: Titled Tuesday Blitz"]
[Site "Chess.com"]
[Date "2020.10.13"]
[Round "1"]
[White "AlexeiShirov"]
[Black "simplerXiao"]
[Result "1-0"]
[WhiteElo "2846"]
[BlackElo "2442"]
[TimeControl "180+1"]
[EndTime "10:04:26 PDT"]
[Termination "AlexeiShirov won by resignation"]

1. e4 {[%clk 0:03:00.9]} 1... d5 {[%clk 0:02:55.6]} 2. exd5 {[%clk 0:03:00]}
2... Qxd5 {[%clk 0:02:54.7]} 3. Nc3 {[%clk 0:02:59.8]} 3... Qd8 {[%clk
0:02:50.3]} 4. d4 {[%clk 0:02:56.5]} 4... Nf6 {[%clk 0:02:49]} 5. Bc4 {[%clk
0:02:54.5]} 5... Bf5 {[%clk 0:02:45.8]} 6. Nge2 {[%clk 0:02:53]} 6... e6 {[%clk
0:02:45.3]} 7. Ng3 {[%clk 0:02:51.8]} 7... Bg6 {[%clk 0:02:44.8]} 8. f4 {[%clk
0:02:48.3]} 8... Bb4 {[%clk 0:02:34.8]} 9. O-O {[%clk 0:02:46.2]} 9... O-O
{[%clk 0:02:29.3]} 10. f5 {[%clk 0:02:44.8]} 10... exf5 {[%clk 0:02:28.7]} 11.
Nxf5 {[%clk 0:02:44.5]} 11... c5 {[%clk 0:02:22.8]} 12. d5 {[%clk 0:02:41.8]}
12... a6 {[%clk 0:02:20.5]} 13. a4 {[%clk 0:02:40.2]} 13... Nbd7 {[%clk
0:02:18.7]} 14. d6 {[%clk 0:02:38.2]} 14... Ne5 {[%clk 0:02:17.5]} 15. Ne7+
{[%clk 0:02:34.2]} 15... Kh8 {[%clk 0:02:15.6]} 16. Bg5 {[%clk 0:02:29.2]} 16...
Nxc4 {[%clk 0:01:56]} 17. Rxf6 {[%clk 0:02:28]} 17... Nxb2 {[%clk 0:01:48.6]}
18. Qf3 {[%clk 0:02:22]} 18... Nc4 {[%clk 0:01:37.6]} 19. Rf1 {[%clk 0:02:17.6]}
19... Ne5 {[%clk 0:01:33.4]} 20. Qg3 {[%clk 0:02:12.1]} 20... Bxc3 {[%clk
0:01:10.7]} 21. Qxc3 {[%clk 0:02:10.3]} 21... Ng4 {[%clk 0:01:06.8]} 22. Nxg6+
{[%clk 0:02:05]} 22... hxg6 {[%clk 0:01:04]} 23. Rxf7 {[%clk 0:02:02]} 23... Nf6
{[%clk 0:00:56.8]} 24. R1xf6 {[%clk 0:01:57.8]} 1-0